bitfinex/quotes_SOLUSD_20250717
["timestamp","ask_amount","ask_price","bid_price","bid_amount"]
[1752716250300,32.16,171.7,171.68,14.96184601]
[1752716250488,31.5,171.7,171.69,14.96184601]
[1752716251702,37.32411182,171.7,171.68,14.96184601]
[1752716251890,37.98411182,171.7,171.68,14.96184601]
[1752716253203,0.66,171.69,171.63,7.7546]
[1752716253411,0.66,171.69,171.62,14.96184601]
[1752716253412,46.44184601,171.68,171.62,14.96184601]
[1752716253614,20.39032915,171.65,171.61,0.06]
[1752716253788,31.46,171.64,171.61,15.02184601]
[1752716254190,0.66,171.63,171.61,0.06]
[1752716254400,31.46,171.62,171.61,0.06]
[1752716254589,32.12,171.62,171.57,14.96184601]
[1752716254932,32.12,171.62,171.56,0.06]
[1752716254933,15.62184601,171.61,171.56,0.06]
[1752716255117,31.46,171.6,171.56,15.02184601]
[1752716255318,0.66,171.59,171.56,0.06]
[1752716255627,20.3998368,171.57,171.53,14.96184602]
[1752716255794,32.12,171.56,171.53,1e-08]
[1752716255993,47.08184601,171.56,171.53,1e-08]
[1752716256187,15.62184601,171.55,171.53,1e-08]
[1752716256396,31.46,171.54,171.53,1e-08]
[1752716256608,32.12,171.54,171.53,1e-08]
[1752716257609,0.66,171.56,171.53,14.96184602]
[1752716257792,5.82954412,171.54,171.53,1e-08]
[1752716257990,5.82954412,171.54,171.53,14.96184602]
[1752716258512,5.82924331,171.55,171.53,15.67184602]
[1752716258813,5.82924331,171.55,171.53,1e-08]
[1752716258996,5.82784544,171.59,171.54,0.71]
[1752716259309,37.26784544,171.59,171.55,0.71]
[1752716259520,37.26784544,171.59,171.56,0.71]
[1752716259695,37.26784544,171.59,171.58,14.96184601]
[1752716260797,37.26784544,171.59,171.57,14.96184601]
[1752716261008,37.26784544,171.59,171.58,14.96184601]
[1752716262412,37.26784544,171.59,171.58,15.67184601]
[1752716262717,37.26784544,171.59,171.58,14.96184601]
[1752716262906,37.26784544,171.59,171.58,15.67184601]
[1752716263104,37.26784544,171.59,171.58,14.96184601]
[1752716263908,37.26784544,171.59,171.58,15.67184601]
[1752716264315,37.26784544,171.59,171.58,14.96184601]
[1752716264918,37.26784544,171.59,171.58,40.96184601]
[1752716265120,37.26784544,171.59,171.56,6.7142]
[1752716265299,37.26784544,171.59,171.58,14.96184601]
[1752716265721,5.82784544,171.59,171.58,14.96184601]
[1752716266604,37.24757524,171.6,171.58,14.96184601]
[1752716266809,37.24757524,171.6,171.59,14.96184601]
[1752716267008,37.24757524,171.6,171.56,6.7142]
[1752716267316,37.24757524,171.6,171.57,0.71]
[1752716267515,5.82757524,171.6,171.57,0.71]
[1752716267711,37.22757524,171.6,171.57,0.71]
[1752716267903,8.16176913,171.61,171.59,35.77713035]
[1752716268219,5.82652559,171.63,171.6,20.2642607]
[1752716268516,5.82652559,171.63,171.62,35.77713035]
[1752716269107,5.82652559,171.63,171.59,26.0]
[1752716269306,5.82652559,171.63,171.62,9.77713035]
[1752716269505,5.82652559,171.63,171.62,35.77713035]
[1752716269708,5.82652559,171.63,171.62,26.0]
[1752716269914,5.82614775,171.64,171.62,9.77713035]
[1752716270109,41.95713035,171.63,171.59,9.77713035]
[1752716270313,0.66,171.62,171.58,9.77713035]
[1752716270519,32.18,171.61,171.59,9.77713035]
[1752716270832,31.52,171.61,171.56,6.7142]
[1752716271013,31.52,171.61,171.6,9.77713035]
[1752716271903,52.57508186,171.61,171.59,9.77713035]
[1752716272112,0.66,171.6,171.59,9.77713035]
[1752716272925,51.91508186,171.61,171.59,14.98273903]
[1752716273109,52.57508186,171.61,171.59,14.98273903]
[1752716273429,51.91508186,171.61,171.6,14.98273903]
[1752716274410,52.57508186,171.61,171.58,14.98273903]
[1752716274615,0.66,171.6,171.58,14.98273903]
[1752716274819,32.12,171.59,171.58,14.98273903]
[1752716275009,32.12,171.59,171.57,14.98273903]
[1752716275212,0.66,171.58,171.57,14.98273903]
[1752716275820,5.8285248,171.57,171.56,0.06]
[1752716276013,37.2885248,171.57,171.56,15.04273903]
[1752716276739,37.9485248,171.57,171.56,15.04273903]
[1752716277105,37.2885248,171.57,171.56,0.06]
[1752716277317,37.2885248,171.57,171.56,15.04273903]
[1752716278934,37.9485248,171.57,171.56,0.06]
[1752716279230,37.9485248,171.57,171.56,15.04273903]
[1752716279936,5.8285248,171.57,171.56,15.04273903]
[1752716280135,31.46,171.57,171.56,0.06]
[1752716280307,32.12,171.57,171.56,0.06]
[1752716280504,47.10273903,171.57,171.53,1e-08]
[1752716280704,14.98273903,171.55,171.51,0.1]
[1752716280924,46.44273903,171.54,171.51,1e-08]
[1752716281132,14.98273903,171.52,171.51,1e-08]
[1752716281436,31.46,171.52,171.51,1e-08]
[1752716281616,32.12,171.52,171.51,1e-08]
[1752716282136,37.95022388,171.52,171.51,1e-08]
[1752716283117,37.93022388,171.52,171.51,1e-08]
[1752716286137,37.89022388,171.52,171.51,1e-08]
[1752716288624,40.90867618,171.52,171.51,1e-08]
[1752716290726,9.50867618,171.52,171.51,1e-08]
[1752716290933,5.83022388,171.52,171.51,15.70273904]
[1752716291259,5.83022388,171.52,171.51,1e-08]
[1752716291457,21.06578358,171.52,171.48,26.0]
[1752716291752,32.04,171.51,171.48,14.98273903]
[1752716291928,0.66,171.5,171.48,14.98273903]
[1752716292248,31.38,171.49,171.48,14.98273903]
[1752716293043,37.2112438,171.49,171.48,14.98273903]
[1752716293848,52.44935331,171.49,171.45,0.1]
[1752716294051,14.98273903,171.46,171.44,1e-08]
[1752716294248,31.38,171.45,171.44,1e-08]
[1752716294432,32.04,171.45,171.44,1e-08]
[1752716295048,37.87260425,171.45,171.44,1e-08]
[1752716295637,47.01235735,171.45,171.44,1e-08]
[1752716295953,6.49260425,171.45,171.44,1e-08]
[1752716296259,37.21260425,171.45,171.44,1e-08]
[1752716296553,14.57810951,171.49,171.44,10.51975311]
[1752716296730,5.83056381,171.51,171.48,9.7997531]
[1752716296931,5.82988398,171.53,171.5,9.7997531]
[1752716297134,5.82988398,171.53,171.52,9.7997531]
[1752716297343,5.82988398,171.53,171.52,10.5197531]
[1752716297848,31.38,171.54,171.52,0.72]
[1752716297849,5.82976482,171.54,171.52,0.72]
[1752716298031,8.84822395,171.55,171.53,10.5197531]
[1752716298243,5.8281851,171.58,171.54,10.5197531]
[1752716298448,5.8281851,171.58,171.57,9.7997531]
[1752716298650,5.85770861,171.6,171.57,10.5197531]
[1752716298946,5.85770861,171.6,171.59,14.97615215]
[1752716298947,0.03,171.6,171.59,14.97615215]
[1752716299140,0.03,171.6,171.59,15.69615215]
[1752716299641,0.03,171.6,171.59,47.45698827]
[1752716300528,3.01864832,171.69,171.62,26.0]
[1752716300733,5.85515663,171.67,171.66,14.97615215]
[1752716300933,0.03,171.67,171.66,14.97615215]
[1752716302034,32.19,171.67,171.64,14.97615215]
[1752716302235,0.03,171.67,171.66,14.97615215]
[1752716302971,5.8551296,171.67,171.62,0.72]
[1752716303154,0.66,171.66,171.64,14.97615215]
[1752716303462,32.16,171.65,171.63,14.97615215]
[1752716303761,0.66,171.64,171.57,8.1771]
[1752716304060,0.66,171.64,171.59,14.97615215]
[1752716304357,0.66,171.64,171.53,39.7987]
[1752716304358,14.97615215,171.63,171.57,14.97615215]
[1752716304659,32.23,171.62,171.59,14.97615215]
[1752716304865,0.69,171.61,171.58,14.97615215]
[1752716305035,15.25876456,171.6,171.53,39.7987]
[1752716305235,31.54,171.59,171.57,14.97615215]
[1752716305457,31.54,171.59,171.58,14.97615215]
[1752716305838,46.12876456,171.6,171.58,14.97615215]
[1752716306054,46.12876456,171.6,171.59,14.97615215]
[1752716306956,51.95627038,171.6,171.58,14.97615215]
[1752716307151,51.95627038,171.6,171.54,26.66]
[1752716307357,51.95627038,171.6,171.59,14.97615215]
[1752716307661,51.95627038,171.6,171.55,0.66]
[1752716307842,52.64627038,171.6,171.56,26.0]
[1752716308042,52.64627038,171.6,171.58,14.97615215]
[1752716308450,52.64627038,171.6,171.56,26.0]
[1752716308651,52.64627038,171.6,171.58,14.97615215]
[1752716308853,51.95627038,171.6,171.58,14.97615215]
[1752716309052,51.95627038,171.6,171.59,14.97615215]
[1752716309252,52.64627038,171.6,171.58,14.97615215]
[1752716310644,0.69,171.59,171.54,0.66]
[1752716310843,0.69,171.59,171.53,34.2987]
[1752716310844,0.69,171.59,171.57,14.97615215]
[1752716311057,37.3681851,171.58,171.57,14.97615215]
[1752716312146,37.3681851,171.58,171.54,0.66]
[1752716312354,5.82682671,171.62,171.57,14.97615215]
[1752716312566,5.82682671,171.62,171.61,14.97615215]
[1752716312749,5.82682671,171.62,171.6,14.97615215]
[1752716312750,20.39389348,171.62,171.6,14.97615215]
[1752716312956,32.19,171.61,171.55,26.0]
[1752716313150,36.06242253,171.6,171.55,14.97615215]
[1752716313364,32.19,171.59,171.56,14.97615215]
[1752716313548,0.69,171.58,171.56,14.97615215]
[1752716313754,15.66615215,171.57,171.5,6.0582]
[1752716313949,47.18615215,171.56,171.51,14.97615215]
[1752716314173,32.23,171.55,171.47,0.66]
[1752716314472,0.69,171.55,171.5,14.97615215]
[1752716314657,0.69,171.54,171.51,14.97615215]
[1752716314860,32.23,171.53,171.49,26.0]
[1752716315162,20.40697334,171.51,171.46,6.7182]
[1752716315349,20.40697334,171.51,171.5,14.97615215]
[1752716315556,37.35056381,171.51,171.5,14.97615215]
[1752716315756,37.35056381,171.51,171.49,14.97615215]
[1752716316168,37.35056381,171.51,171.5,14.97615215]
[1752716316369,37.35056381,171.51,171.46,6.7182]
[1752716316569,5.83056381,171.51,171.5,14.97615215]
[1752716316778,5.83056381,171.51,171.49,26.0]
[1752716316978,5.83056381,171.51,171.5,14.97615215]
[1752716317291,21.09697334,171.51,171.46,32.7182]
[1752716317572,37.37020351,171.53,171.5,14.97615215]
[1752716317876,37.37020351,171.53,171.52,14.97615215]
[1752716318064,14.57180772,171.57,171.52,15.63615215]
[1752716318263,37.3485248,171.57,171.53,0.66]
[1752716318448,37.3485248,171.57,171.56,14.97615215]
[1752716319172,5.82750582,171.6,171.56,15.63615215]
[1752716319375,5.82750582,171.6,171.59,14.97615215]
[1752716320073,5.82750582,171.6,171.59,15.63615215]
[1752716320271,5.82750582,171.6,171.59,14.97615215]
[1752716320857,5.82750582,171.6,171.59,15.63615215]
[1752716321355,5.82750582,171.6,171.59,14.97615215]
[1752716324966,36.06242253,171.6,171.55,32.0903]
[1752716325158,31.48,171.59,171.55,32.7503]
[1752716325366,31.48,171.59,171.58,14.97615215]
[1752716325577,5.82784544,171.59,171.58,14.97615215]
[1752716326760,5.82784544,171.59,171.56,0.66]
[1752716326761,52.54745905,171.59,171.56,14.97615215]
[1752716326966,14.97615215,171.57,171.51,6.3397]
[1752716327282,14.97615215,171.55,171.51,14.97615215]
[1752716327621,5.82920431,171.55,171.54,0.06]
[1752716327885,37.28920431,171.55,171.54,15.03615215]
[1752716328575,31.44,171.56,171.54,15.69615215]
[1752716328778,5.8281851,171.58,171.55,15.63615215]
[1752716329085,5.8281851,171.58,171.57,14.97615215]
[1752716330065,21.08864785,171.58,171.54,0.06]
[1752716330274,21.08864785,171.58,171.57,14.97615215]
[1752716330275,20.39864785,171.58,171.57,14.97615215]
[1752716330472,5.8281851,171.58,171.57,14.97615215]
[1752716330989,6.5181851,171.58,171.54,0.06]
[1752716331184,5.8281851,171.58,171.57,14.97615215]
[1752716332466,5.8281851,171.58,171.54,0.06]
[1752716332678,5.82750582,171.6,171.57,14.97615215]
[1752716332875,5.82750582,171.6,171.59,14.97615215]
[1752716333682,20.39627038,171.6,171.56,0.66]
[1752716333886,21.05627038,171.6,171.55,6.4863]
[1752716334063,21.05627038,171.6,171.54,0.74]
[1752716334064,32.06,171.59,171.54,26.06]
[1752716334271,32.06,171.59,171.57,14.97615215]
[1752716334487,21.05864785,171.58,171.54,26.06]
[1752716334703,31.4,171.57,171.54,26.06]
[1752716334911,31.4,171.57,171.54,15.03615215]
[1752716335198,0.66,171.56,171.54,0.06]
[1752716335398,31.38,171.55,171.54,0.06]
[1752716335772,32.04,171.55,171.54,0.06]
[1752716336590,37.86920431,171.55,171.54,0.06]
[1752716336798,67.41836724,171.55,171.5,14.97615215]
[1752716337097,0.66,171.54,171.5,14.97615215]
[1752716337299,14.97615215,171.52,171.47,14.97615215]
[1752716337472,31.38,171.51,171.48,14.97615215]
[1752716337680,15.63615215,171.54,171.5,14.97615215]
[1752716337880,31.38,171.53,171.5,14.97615215]
[1752716338197,32.04,171.53,171.49,14.97615215]
[1752716338393,32.04,171.53,171.48,0.68]
[1752716338600,32.04,171.53,171.49,14.97615215]
[1752716338601,5.83022388,171.52,171.49,14.97615215]
[1752716338769,31.38,171.51,171.49,14.97615215]
[1752716339201,32.04,171.51,171.46,26.68]
[1752716339371,0.66,171.5,171.46,40.97615215]
[1752716339577,31.38,171.49,171.47,0.68]
[1752716339775,6.49022388,171.52,171.46,26.0]
[1752716339980,31.38,171.51,171.49,14.97615215]
[1752716340173,0.66,171.5,171.48,14.97615215]
[1752716340377,0.66,171.5,171.49,14.97615215]
[1752716340584,5.82988398,171.53,171.49,14.97615215]
[1752716340790,0.66,171.56,171.52,14.97615215]
[1752716340791,31.38,171.56,171.52,14.97615215]
[1752716340982,15.63615215,171.55,171.51,14.97615215]
[1752716341189,0.66,171.54,171.52,14.97615215]
[1752716341387,78.66674434,171.61,171.53,14.97615215]
[1752716341600,0.66,171.6,171.57,14.97615215]
[1752716341783,31.38,171.59,171.57,14.97615215]
[1752716342181,32.04,171.59,171.57,14.97615215]
[1752716342380,31.38,171.59,171.58,14.97615215]
[1752716342697,37.20784544,171.59,171.58,14.97615215]
[1752716343196,37.20784544,171.59,171.55,14.97615215]
[1752716343197,52.43745905,171.59,171.55,14.97615215]
[1752716343374,15.63615215,171.58,171.53,14.97615215]
[1752716343581,51.77745905,171.59,171.51,14.97615215]
[1752716343582,14.97615215,171.56,171.51,14.97615215]
[1752716343784,47.01615215,171.55,171.5,14.97615215]
[1752716343983,47.01615215,171.54,171.5,14.97615215]
[1752716344183,32.04,171.53,171.5,14.97615215]
[1752716344386,32.04,171.53,171.49,14.97615215]
[1752716344598,5.83022388,171.52,171.47,33.0236]
[1752716344809,5.83022388,171.52,171.47,6.3436]
[1752716344975,0.66,171.51,171.48,14.97615215]
[1752716345178,5.83022388,171.52,171.48,14.97615215]
[1752716345179,5.83022388,171.52,171.49,14.97615215]
[1752716345474,5.83022388,171.52,171.5,14.97615215]
[1752716345681,5.83022388,171.52,171.51,15.65615215]
[1752716345897,5.83022388,171.52,171.49,0.68]
[1752716346100,5.83022388,171.52,171.51,14.97615215]
[1752716347217,31.38,171.53,171.51,15.65615215]
[1752716347500,5.82980377,171.54,171.51,15.65615215]
[1752716347501,5.82980377,171.54,171.52,14.97615215]
[1752716347712,5.8292728,171.55,171.53,15.65615215]
[1752716347904,5.8292728,171.55,171.54,14.97615215]
[1752716348109,5.82896729,171.56,171.54,15.65615215]
[1752716348284,31.38,171.6,171.55,15.65615215]
[1752716348486,31.38,171.6,171.59,14.97615215]
[1752716348685,5.82716624,171.61,171.59,14.97615215]
[1752716349105,5.82716624,171.61,171.6,14.97615215]
[1752716349476,5.82716624,171.61,171.56,0.68]
[1752716349679,5.82716624,171.61,171.55,6.1607]
[1752716349680,0.66,171.6,171.55,6.1607]
[1752716349884,31.38,171.59,171.55,6.1607]
[1752716350106,31.38,171.59,171.58,14.97615215]
[1752716350484,51.77508186,171.61,171.55,6.8407]
[1752716350683,51.77508186,171.61,171.57,14.97615215]
[1752716351005,51.77508186,171.61,171.59,14.97615215]
[1752716351176,52.43508186,171.61,171.58,14.97615215]
[1752716351787,51.77508186,171.61,171.58,14.97615215]
[1752716351986,37.20716624,171.61,171.6,14.97615215]
[1752716352384,5.82686335,171.62,171.6,14.97615215]
[1752716352603,5.82546895,171.66,171.61,15.65615215]
[1752716352795,31.38,171.65,171.62,0.68]
[1752716352998,37.20580833,171.65,171.64,14.97615215]
[1752716353322,5.82580833,171.65,171.64,14.97615215]
[1752716353504,5.82580833,171.65,171.64,15.65615215]
[1752716353707,5.82580833,171.65,171.64,14.97615215]
[1752716354306,0.03,171.67,171.64,8.5508]
[1752716354605,5.85519626,171.67,171.66,14.97615215]
[1752716355300,0.03,171.67,171.66,14.97615215]
[1752716357106,0.69,171.67,171.64,14.97615215]
[1752716357309,37.86546895,171.66,171.64,14.97615215]
[1752716357620,37.20546895,171.66,171.62,26.0]
[1752716357797,52.42914132,171.66,171.61,0.68]
[1752716358114,0.66,171.65,171.63,14.97615215]
[1752716358419,0.66,171.64,171.59,6.3849]
[1752716358603,32.04,171.63,171.59,14.97615215]
[1752716358805,32.04,171.63,171.6,14.97615215]
[1752716359008,31.38,171.63,171.62,9.77576274]
[1752716359204,31.38,171.63,171.61,9.77576274]
[1752716359417,5.82682671,171.62,171.61,9.77576274]
[1752716359610,5.82682671,171.62,171.61,26.0]
[1752716360319,6.48682671,171.62,171.58,26.0]
[1752716360494,6.48682671,171.62,171.59,9.77576274]
[1752716360862,20.39389348,171.62,171.6,9.77576274]
[1752716361597,20.39389348,171.62,171.58,26.0]
[1752716361598,5.82682671,171.62,171.61,9.77576274]
[1752716361993,5.82654026,171.63,171.61,9.77576274]
[1752716362198,5.82654026,171.63,171.62,9.77576274]
[1752716363413,5.82654026,171.63,171.59,26.68]
[1752716363607,5.82654026,171.63,171.61,9.77576274]
[1752716364433,5.82654026,171.63,171.62,9.77576274]
[1752716364651,37.20623028,171.64,171.62,9.77576274]
[1752716364827,37.20623028,171.64,171.63,9.77576274]
[1752716364828,5.82623028,171.64,171.63,9.77576274]
[1752716365510,5.82580833,171.65,171.61,26.71]
[1752716365711,5.82580833,171.65,171.64,9.77576274]
[1752716366336,5.82580833,171.65,171.61,26.0]
[1752716366545,6.54580833,171.65,171.61,26.0]
[1752716366824,5.82580833,171.65,171.64,9.77576274]
[1752716367827,0.03,171.67,171.64,10.48576274]
[1752716368042,0.03,171.67,171.66,9.77576274]
[1752716368229,5.8552403,171.67,171.66,9.77576274]
[1752716368628,5.8552403,171.67,171.62,0.71]
[1752716368821,0.72,171.66,171.65,26.0]
[1752716369044,0.72,171.66,171.63,9.77576274]
[1752716369341,32.08,171.65,171.62,9.77576274]
[1752716369522,0.72,171.64,171.62,9.77576274]
[1752716369850,5.82648721,171.63,171.62,9.77576274]
[1752716370925,5.82648721,171.63,171.62,10.48576274]
[1752716371248,5.82622412,171.64,171.62,10.48576274]
[1752716371442,37.18555297,171.66,171.64,26.0]
[1752716371618,5.82555297,171.66,171.65,9.77576274]
[1752716371929,5.8551296,171.67,171.65,9.77576274]
[1752716372135,6.5751296,171.67,171.63,26.0]
[1752716372437,5.8551296,171.67,171.66,9.77576274]
[1752716373242,0.03,171.67,171.66,10.48576274]
[1752716374430,0.03,171.67,171.66,27.27044671]
[1752716374628,0.03,171.7,171.68,26.0]
[1752716374826,0.03,171.7,171.69,9.77576274]
[1752716375147,0.03,171.7,171.69,20.26152548]
[1752716375453,0.03,171.7,171.69,37.04620945]
[1752716376853,0.03,171.72,171.71,26.0]
[1752716377027,0.03,171.72,171.71,9.77576274]
[1752716377229,0.03,171.72,171.71,10.48576274]
[1752716377544,0.03,171.72,171.71,27.27044671]
[1752716377720,0.03,171.72,171.71,64.80364671]
[1752716379421,0.03,171.77,171.76,9.77576274]
[1752716380244,0.03,171.77,171.75,26.0]
[1752716380424,0.03,171.77,171.76,9.77576274]
[1752716381136,0.03,171.77,171.75,26.0]
[1752716381427,0.03,171.77,171.76,9.77576274]
[1752716382026,6.57173837,171.77,171.76,9.77576274]
[1752716382232,16.34750111,171.77,171.72,26.0]
[1752716382435,9.77576274,171.75,171.71,9.77576274]
[1752716382633,32.06,171.76,171.7,9.77576274]
[1752716382634,0.72,171.74,171.7,9.77576274]
[1752716382821,0.72,171.73,171.71,9.77576274]
[1752716383035,0.72,171.75,171.71,9.77576274]
[1752716383241,0.72,171.75,171.73,9.77576274]
[1752716383448,0.72,171.75,171.7,26.0]
[1752716383449,20.40608429,171.77,171.74,9.77576274]
[1752716383644,20.40608429,171.77,171.76,9.77576274]
[1752716383645,5.85173837,171.77,171.76,9.77576274]
[1752716385328,0.03,171.77,171.76,9.77576274]
[1752716386947,0.03,171.77,171.76,10.48576274]
[1752716387753,0.03,171.77,171.76,9.77576274]
[1752716387928,0.03,171.77,171.76,10.48576274]
[1752716388940,0.03,171.77,171.76,27.27044671]
[1752716389138,0.03,171.77,171.76,33.09252402]
[1752716391150,0.2,171.78,171.76,179.29252402]
[1752716391348,0.03,171.81,171.8,42.78468397]
[1752716391553,0.03,171.81,171.8,93.67620945]
[1752716391733,0.2,171.83,171.81,16.78468397]
[1752716391932,0.2,171.83,171.82,9.77576274]
[1752716392451,0.2,171.83,171.82,10.48576274]
[1752716392751,5.84803733,171.88,171.86,26.0]
[1752716393056,0.03,171.88,171.87,9.77576274]
[1752716394050,0.03,171.88,171.87,26.56044671]
[1752716394223,0.03,171.88,171.87,27.22044671]
[1752716394971,0.03,171.89,171.87,27.22044671]
[1752716395265,0.03,171.89,171.88,41.75576274]
[1752716395442,0.03,171.89,171.88,68.31620945]
[1752716395853,0.03,171.89,171.88,48.76468397]
[1752716396256,0.03,171.89,171.88,26.56044671]
[1752716396747,0.03,171.89,171.88,27.22044671]
[1752716397358,0.03,171.89,171.88,42.81422201]
[1752716397572,0.03,171.89,171.88,34.86409653]
[1752716397869,0.03,171.93,171.92,42.78468397]
[1752716398080,0.03,171.93,171.92,83.88044671]
[1752716398251,0.03,171.93,171.92,52.56044671]
[1752716398646,0.03,171.93,171.92,35.77576274]
[1752716399274,0.71,171.93,171.92,26.0]
[1752716399459,0.71,171.93,171.92,35.77576274]
[1752716400075,0.03,171.93,171.92,35.77576274]
[1752716400274,0.71,171.93,171.92,26.0]
[1752716400456,0.03,171.93,171.92,35.77576274]
[1752716401144,0.03,171.93,171.92,53.22044671]
[1752716401564,0.03,171.93,171.92,52.56044671]
[1752716402145,0.71,171.93,171.92,26.0]
[1752716402374,0.03,171.93,171.92,9.77576274]
[1752716402567,0.03,171.93,171.92,10.43576274]
[1752716402751,0.03,171.93,171.92,36.43576274]
[1752716402956,0.03,171.93,171.92,10.43576274]
[1752716403777,0.03,171.93,171.92,35.77576274]
[1752716403959,0.03,171.93,171.92,9.77576274]
[1752716404288,0.71,171.93,171.85,6.1999]
[1752716404461,0.71,171.93,171.9,9.77576274]
[1752716404775,0.71,171.93,171.85,6.1999]
[1752716404776,0.03,171.93,171.92,9.77576274]
[1752716405184,0.71,171.93,171.92,9.77576274]
[1752716405360,0.03,171.93,171.92,9.77576274]
[1752716405677,0.03,171.93,171.92,35.77576274]
[1752716406152,0.03,171.93,171.92,53.22044671]
[1752716406352,0.03,171.93,171.92,27.22044671]
[1752716407370,0.03,171.93,171.92,16.78468397]
[1752716407574,0.03,171.93,171.92,26.56044671]
[1752716407985,0.03,171.93,171.92,9.77576274]
[1752716408184,0.71,171.93,171.92,9.77576274]
[1752716408775,0.71,171.93,171.9,26.0]
[1752716408974,0.71,171.93,171.85,12.68514668]
[1752716408975,0.68,171.92,171.84,0.11804195]
[1752716409189,20.35949042,171.91,171.84,0.11804195]
[1752716409361,10.45576274,171.9,171.85,9.77576274]
[1752716409663,20.35949042,171.91,171.84,0.11804195]
[1752716409664,0.68,171.89,171.87,9.77576274]
[1752716409868,20.35949042,171.91,171.88,9.77576274]
[1752716410074,20.35949042,171.91,171.87,9.77576274]
[1752716410485,0.68,171.9,171.86,9.77576274]
[1752716410862,0.68,171.89,171.86,9.77576274]
[1752716411062,0.68,171.88,171.86,9.77576274]
[1752716411484,5.81835107,171.87,171.86,9.77576274]
[1752716411663,6.49835107,171.87,171.85,9.77576274]
[1752716411864,0.68,171.86,171.85,9.77576274]
[1752716412075,0.68,171.86,171.85,35.77576274]
[1752716412487,5.81835107,171.87,171.85,35.77576274]
[1752716412677,5.81835107,171.87,171.86,9.77576274]
[1752716413061,5.81835107,171.87,171.85,35.77576274]
[1752716413410,6.49835107,171.87,171.85,35.77576274]
[1752716413583,0.68,171.86,171.85,26.0]
[1752716413796,0.68,171.86,171.85,35.77576274]
[1752716414680,0.68,171.86,171.84,9.89380469]
[1752716414879,0.68,171.85,171.84,9.89380469]
[1752716415384,5.81835107,171.87,171.84,9.89380469]
[1752716415589,55.82033477,171.89,171.85,9.77576274]
[1752716415590,0.68,171.86,171.85,9.77576274]
[1752716415766,0.68,171.86,171.84,0.11804195]
[1752716415960,20.36304397,171.88,171.84,9.89380469]
[1752716416171,0.68,171.85,171.84,35.89380469]
[1752716416366,0.68,171.85,171.84,0.11804195]
[1752716416972,6.49733566,171.9,171.84,35.89380469]
[1752716417197,6.49733566,171.9,171.89,9.77576274]
[1752716417395,6.49733566,171.9,171.88,9.77576274]
[1752716417700,5.81801256,171.88,171.84,0.11804195]
[1752716417892,9.77576274,171.86,171.84,0.11804195]
[1752716418084,31.46,171.85,171.84,0.11804195]
[1752716418290,32.14,171.85,171.84,0.11804195]
[1752716418491,41.91576274,171.85,171.8,9.77576274]
[1752716418681,10.45576274,171.84,171.8,9.77576274]
[1752716418881,9.77576274,171.84,171.8,9.77576274]
[1752716419086,0.68,171.83,171.79,9.77576274]
[1752716419312,9.77576274,171.81,171.76,9.77576274]
[1752716419490,41.89576274,171.8,171.75,9.77576274]
[1752716419804,52.49371208,171.79,171.75,35.77576274]
[1752716419997,0.68,171.78,171.76,9.77576274]
[1752716420794,37.24106059,171.79,171.77,9.77576274]
[1752716420995,37.92106059,171.79,171.77,9.77576274]
[1752716421803,37.90106059,171.79,171.77,9.77576274]
[1752716422006,5.82106059,171.79,171.78,9.77576274]
[1752716422216,31.4,171.81,171.78,35.77576274]
[1752716422395,31.4,171.81,171.78,26.0]
[1752716422597,10.45576274,171.8,171.75,9.77576274]
[1752716422779,0.68,171.79,171.75,35.77576274]
[1752716423612,0.68,171.78,171.75,35.77576274]
[1752716423808,5.82173837,171.77,171.75,35.77576274]
[1752716424105,37.22173837,171.77,171.76,9.77576274]
[1752716424297,5.82148285,171.78,171.76,9.77576274]
[1752716424498,37.20038298,171.81,171.78,26.0]
[1752716424705,37.20038298,171.81,171.8,9.77576274]
[1752716425515,31.36,171.84,171.8,9.77576274]
[1752716425811,31.36,171.84,171.83,9.77576274]
[1752716426188,0.67,171.85,171.83,9.77576274]
[1752716426189,18.23063912,171.88,171.83,9.77576274]
[1752716426518,37.17835107,171.87,171.83,26.0]
[1752716426686,37.17835107,171.87,171.86,9.77576274]